[Event "Nordic Chess-ch 2019"]
[Site "Sarpsborg"]
[Date "2019.06.22"]
[Round "3.14"]
[White "Unneland, Mathias"]
[Black "Ingebretsen, Jens E"]
[Result "0-1"]
[ECO "E11"]
[WhiteElo "1980"]
[BlackElo "2263"]
[Annotator "ChessBase"]
[PlyCount "56"]
[EventDate "2019.06.21"]
[EventType "swiss"]
[EventCountry "NOR"]
[SourceTitle "playchess.com"]
[Source "ChessBase"]
[SourceQuality "1"]
[TimeControl "40/5400+30:1800+30"]

1. d4 {[%emt 0:00:24]} Nf6 {[%emt 0:00:00]} 2. c4 {[%emt 0:00:48]} e6 {[%emt 0:00:00]} 3. Nf3 {[%emt 0:00:20]} Bb4+ {[%emt 0:00:00]} 4. Bd2 {[%emt 0:00:08]} Qe7 {[%emt 0:00:00]} 5. Nc3 {[%emt 0:01:12]} Bxc3 {[%emt 0:00:37]} 6. Bxc3 {[%emt 0:01:03]} Ne4 {[%emt 0:00:01]} 7. Qc2 {[%emt 0:01:02]} Nxc3 {[%emt 0:00:07]} 8. Qxc3 {[%emt 0:00:15]} O-O {[%emt 0:00:09]} 9. e3 {[%emt 0:01:12]} b6 {[%emt 0:00:57]} 10. Be2 {[%emt 0:00:35]} Bb7 {[%emt 0:00:10]} 11. O-O {[%emt 0:00:55]} d6 {[%emt 0:00:45]} 12. Rac1 {[%emt 0:01:13]} Nd7 {[%emt 0:00:24]} 13. Nd2 {[%emt 0:02:20]} e5 {[%emt 0:02:18]} 14. e4 {[%emt 0:08:55]} exd4 {[%emt 0:01:58]} 15. Qxd4 {[%emt 0:00:08]} f5 {[%emt 0:02:44]} 16. Rce1 {[%emt 0:02:23]} c5 {[%emt 0:07:29]} 17. Qc3 {[%emt 0:03:25]} f4 {[%emt 0:02:09]} 18. Bf3 {[%emt 0:05:09]} Ne5 {[%emt 0:00:33]} 19. g3 {[%emt 0:10:30]} Qf7 {[%emt 0:01:43]} 20. Bh1 {[%emt 0:01:36]} Bc8 {[%emt 0:02:06]} 21. f3 {[%emt 0:02:37]} Be6 {[%emt 0:02:54]} 22. b3 {[%emt 0:00:31]} Qh5 {[%emt 0:00:28]} 23. Rf2 {[%emt 0:03:38]} Rf6 {[%emt 0:01:15]} 24. Rd1 {[%emt 0:08:14]} fxg3 {[%emt 0:01:08]} 25. hxg3 {[%emt 0:00:22]} Rh6 {[%emt 0:00:05]} 26. Bg2 {[%emt 0:00:52]} Qh2+ {[%emt 0:00:04]} 27. Kf1 {[%emt 0:00:18]} Qxg3 {[%emt 0:00:14]} 28. Ke2 {[%emt 0:00:28]} Ng4 {[%emt 0:00:23]} 0-1

[Event "Nordic Chess-ch 2019"]
[Site "Sarpsborg"]
[Date "2019.06.22"]
[Round "3.15"]
[White "Vitenberg, Noam Aviv"]
[Black "Nilsen, Tobias Lang"]
[Result "1-0"]
[ECO "A34"]
[WhiteElo "2256"]
[BlackElo "1986"]
[Annotator "ChessBase"]
[PlyCount "55"]
[EventDate "2019.06.21"]
[EventType "swiss"]
[EventCountry "NOR"]
[SourceTitle "playchess.com"]
[Source "ChessBase"]
[SourceQuality "1"]
[TimeControl "40/5400+30:1800+30"]

1. c4 {[%emt 0:00:00]} c5 {[%emt 0:00:00]} 2. Nc3 {[%emt 0:00:00]} Nc6 {[%emt 0:00:03]} 3. Nf3 {[%emt 0:00:00]} Nf6 {[%emt 0:00:30]} 4. e3 {[%emt 0:01:09]} d5 {[%emt 0:03:06]} 5. cxd5 {[%emt 0:01:06]} Nxd5 {[%emt 0:00:06]} 6. Bc4 {[%emt 0:00:16]} e6 {[%emt 0:02:02]} 7. O-O {[%emt 0:00:35]} Be7 {[%emt 0:00:10]} 8. Bxd5 {[%emt 0:10:53]} exd5 {[%emt 0:02:24]} 9. d4 {[%emt 0:00:08]} cxd4 {[%emt 0:03:33]} 10. Nxd4 {[%emt 0:00:07]} O-O {[%emt 0:00:10]} 11. Nxc6 {[%emt 0:00:55]} bxc6 {[%emt 0:00:06]} 12. b3 {[%emt 0:00:09]} Ba6 {[%emt 0:11:04]} 13. Re1 {[%emt 0:02:29]} Bb4 {[%emt 0:00:23]} 14. Bb2 {[%emt 0:01:41]} c5 {[%emt 0:02:17]} 15. a3 {[%emt 0:14:53]} Bxc3 {[%emt 0:03:01]} 16. Bxc3 {[%emt 0:00:06]} Bb7 {[%emt 0:04:47]} 17. Qg4 {[%emt 0:01:03]} f6 {[%emt 0:00:07]} 18. Rac1 {[%emt 0:00:24]} Re8 {[%emt 0:03:25]} 19. Red1 {[%emt 0:02:20]} Re4 {[%emt 0:00:53]} 20. Qf5 {[%emt 0:01:48]} d4 {[%emt 0:02:43]} 21. Qxc5 {[%emt 0:04:48]} Rg4 {[%emt 0:08:15]} 22. g3 {[%emt 0:01:36]} d3 {[%emt 0:02:54]} 23. Qb5 {[%emt 0:03:34]} Be4 {[%emt 0:01:25]} 24. Qc4+ {[%emt 0:02:01]} Kh8 {[%emt 0:00:45]} 25. h3 {[%emt 0:01:06]} Qd7 {[%emt 0:02:16]} 26. Be1 {[%emt 0:16:12]} Qb7 {[%emt 0:12:38]} 27. hxg4 {[%emt 0:01:55]} Bh1 {[%emt 0:00:17]} 28. e4 {[%emt 0:00:47]} 1-0

[Event "Nordic Chess-ch 2019"]
[Site "Sarpsborg"]
[Date "2019.06.22"]
[Round "3.16"]
[White "Tenold, Andreas"]
[Black "Haugli, Petter"]
[Result "1/2-1/2"]
[ECO "E84"]
[WhiteElo "1959"]
[BlackElo "2223"]
[Annotator "ChessBase"]
[PlyCount "92"]
[EventDate "2019.06.21"]
[EventType "swiss"]
[EventCountry "NOR"]
[SourceTitle "playchess.com"]
[Source "ChessBase"]
[SourceQuality "1"]
[TimeControl "40/5400+30:1800+30"]

1. d4 {[%emt 0:00:00]} Nf6 {[%emt 0:00:00]} 2. c4 {[%emt 0:00:00]} g6 {[%emt 0:00:00]} 3. Nc3 {[%emt 0:00:00]} Bg7 {[%emt 0:00:00]} 4. e4 {[%emt 0:00:00]} d6 {[%emt 0:00:00]} 5. f3 {[%emt 0:00:08]} O-O {[%emt 0:00:12]} 6. Be3 {[%emt 0:00:06]} Nc6 {[%emt 0:00:09]} 7. Nge2 {[%emt 0:00:08]} a6 {[%emt 0:00:10]} 8. Qd2 {[%emt 0:00:18]} Rb8 {[%emt 0:00:06]} 9. Nc1 {[%emt 0:00:09]} e5 {[%emt 0:00:35]} 10. d5 {[%emt 0:00:08]} Nd4 {[%emt 0:00:04]} 11. Nb3 {[%emt 0:00:07]} Nxb3 {[%emt 0:03:09]} 12. axb3 {[%emt 0:00:13]} c5 {[%emt 0:00:08]} 13. g4 {[%emt 0:05:47]} Bd7 {[%emt 0:18:56]} 14. Bd3 {[%emt 0:04:02]} Ne8 {[%emt 0:01:18]} 15. O-O {[%emt 0:25:40]} Nc7 {[%emt 0:03:14]} 16. Kh1 {[%emt 0:09:21]} Qe7 {[%emt 0:02:38]} 17. Ne2 {[%emt 0:07:18]} b5 {[%emt 0:08:07]} 18. Rfb1 {[%emt 0:04:06]} Rb7 {[%emt 0:05:41]} 19. Bc2 {[%emt 0:05:50]} Rd8 {[%emt 0:08:02]} 20. Ra2 {[%emt 0:02:29]} Bf6 {[%emt 0:09:36]} 21. Ng3 {[%emt 0:03:32]} Bh4 {[%emt 0:02:41]} 22. Kg2 {[%emt 0:01:29]} f6 {[%emt 0:01:06]} 23. Rba1 {[%emt 0:03:19]} Bg5 {[%emt 0:01:08]} 24. Bxg5 {[%emt 0:01:58]} fxg5 {[%emt 0:00:06]} 25. h3 {[%emt 0:00:24]} Rdb8 {[%emt 0:04:14]} 26. Rb1 {[%emt 0:00:27]} Qf6 {[%emt 0:01:32]} 27. Qe3 {[%emt 0:01:04]} Kg7 {[%emt 0:02:09]} 28. Qd2 {[%emt 0:04:02]} Rh8 {[%emt 0:04:31]} 29. Qc3 {[%emt 0:04:47]} h5 {[%emt 0:03:37]} 30. Raa1 {[%emt 0:01:15]} bxc4 {[%emt 0:12:40]} 31. bxc4 {[%emt 0:00:18]} Rb4 {[%emt 0:00:09]} 32. b3 {[%emt 0:01:50]} Kf8 {[%emt 0:00:34]} 33. Rh1 {[%emt 0:01:15]} Ke7 {[%emt 0:00:30]} 34. Qe3 {[%emt 0:01:03]} Rbb8 {[%emt 0:02:26]} 35. Ne2 {[%emt 0:01:49]} Rh7 {[%emt 0:01:07]} 36. Qd2 {[%emt 0:01:41]} Rf7 {[%emt 0:02:33]} 37. Raf1 {[%emt 0:00:35]} Rb4 {[%emt 0:03:06]} 38. Ng3 {[%emt 0:01:03]} Rh7 {[%emt 0:01:25]} 39. Ra1 {[%emt 0:01:09]} Rh8 {[%emt 0:00:31]} 40. Ne2 {[%emt 0:00:31]} Rf8 {[%emt 0:00:47]} 41. Rhf1 {[%emt 0:30:34]} Rfb8 {[%emt 0:01:53]} 42. Ra5 {[%emt 0:00:00]} R4b6 {[%emt 0:01:15]} 43. Nc3 {[%emt 0:00:00]} Rh8 {[%emt 0:01:16]} 44. Ne2 {[%emt 0:00:00]} Rbb8 {[%emt 0:01:21]} 45. Raa1 {[%emt 0:00:00]} Rhf8 {[%emt 0:02:05]} 46. Qe3 {[%emt 0:00:00]} Rf7 {[%emt 0:02:03]} 1/2-1/2

[Event "Nordic Chess-ch 2019"]
[Site "Sarpsborg"]
[Date "2019.06.22"]
[Round "3.17"]
[White "Ptacnikova, Lenka"]
[Black "Stellas, Dimitrios"]
[Result "1/2-1/2"]
[ECO "B19"]
[WhiteElo "2145"]
[BlackElo "1976"]
[Annotator "ChessBase"]
[PlyCount "112"]
[EventDate "2019.06.21"]
[EventType "swiss"]
[EventCountry "NOR"]
[SourceTitle "playchess.com"]
[Source "ChessBase"]
[SourceQuality "1"]
[TimeControl "40/5400+30:1800+30"]

1. e4 {[%emt 0:00:00]} c6 {[%emt 0:00:06]} 2. d4 {[%emt 0:01:05]} d5 {[%emt 0:00:24]} 3. Nd2 {[%emt 0:00:49]} dxe4 {[%emt 0:00:38]} 4. Nxe4 {[%emt 0:00:03]} Bf5 {[%emt 0:00:22]} 5. Ng3 {[%emt 0:00:08]} Bg6 {[%emt 0:00:16]} 6. Nf3 {[%emt 0:00:40]} Nd7 {[%emt 0:00:41]} 7. h4 {[%emt 0:00:48]} h6 {[%emt 0:00:20]} 8. h5 {[%emt 0:00:04]} Bh7 {[%emt 0:00:13]} 9. Bd3 {[%emt 0:00:05]} Bxd3 {[%emt 0:00:18]} 10. Qxd3 {[%emt 0:00:03]} e6 {[%emt 0:01:52]} 11. Ne4 {[%emt 0:01:55]} Ngf6 {[%emt 0:01:13]} 12. Bd2 {[%emt 0:03:53]} Nxe4 {[%emt 0:02:07]} 13. Qxe4 {[%emt 0:00:04]} Nf6 {[%emt 0:00:34]} 14. Qe2 {[%emt 0:00:03]} Be7 {[%emt 0:01:12]} 15. O-O-O {[%emt 0:01:14]} Qd5 {[%emt 0:03:33]} 16. c4 {[%emt 0:08:57]} Qe4 {[%emt 0:01:12]} 17. Qxe4 {[%emt 0:02:51]} Nxe4 {[%emt 0:00:14]} 18. Be3 {[%emt 0:00:07]} O-O {[%emt 0:12:44]} 19. Ne5 {[%emt 0:11:25]} Rfd8 {[%emt 0:01:12]} 20. g4 {[%emt 0:00:34]} c5 {[%emt 0:08:35]} 21. f3 {[%emt 0:09:44]} cxd4 {[%emt 0:01:11]} 22. Rxd4 {[%emt 0:01:09]} Rxd4 {[%emt 0:17:01]} 23. Bxd4 {[%emt 0:00:04]} Nd6 {[%emt 0:08:31]} 24. Kb1 {[%emt 0:02:13]} Bf6 {[%emt 0:03:06]} 25. b3 {[%emt 0:01:15]} Rd8 {[%emt 0:03:17]} 26. Bb2 {[%emt 0:00:09]} Nc8 {[%emt 0:06:43]} 27. Kc2 {[%emt 0:04:10]} Kf8 {[%emt 0:01:56]} 28. Re1 {[%emt 0:01:26]} Ke8 {[%emt 0:03:40]} 29. Re3 {[%emt 0:07:37]} a6 {[%emt 0:03:25]} 30. Bc3 {[%emt 0:01:07]} Bxe5 {[%emt 0:03:00]} 31. Rxe5 {[%emt 0:03:08]} Ne7 {[%emt 0:03:39]} 32. Re2 {[%emt 0:08:19]} Kf8 {[%emt 0:01:42]} 33. Rd2 {[%emt 0:06:24]} Rxd2+ {[%emt 0:00:44]} 34. Bxd2 {[%emt 0:00:30]} Nc6 {[%emt 0:01:03]} 35. Kd3 {[%emt 0:00:29]} Ke7 {[%emt 0:03:48]} 36. Ke4 {[%emt 0:00:23]} f6 {[%emt 0:02:30]} 37. Bc1 {[%emt 0:18:24]} Ne5 {[%emt 0:00:40]} 38. Ba3+ {[%emt 0:00:28]} Ke8 {[%emt 0:00:24]} 39. Bd6 {[%emt 0:04:15]} Nf7 {[%emt 0:00:50]} 40. Bf4 {[%emt 0:01:57]} Kd7 {[%emt 0:00:33]} 41. Bd2 {[%emt 0:31:23]} Nd6+ {[%emt 0:12:01]} 42. Kd4 {[%emt 0:00:00]} Kc6 {[%emt 0:01:02]} 43. f4 {[%emt 0:00:00]} f5 {[%emt 0:06:29]} 44. g5 {[%emt 0:00:00]} Ne4 {[%emt 0:00:17]} 45. gxh6 {[%emt 0:00:00]} gxh6 {[%emt 0:00:18]} 46. Bb4 {[%emt 0:00:00]} Ng3 {[%emt 0:01:51]} 47. Bf8 {[%emt 0:00:00]} Nxh5 {[%emt 0:00:19]} 48. Bxh6 {[%emt 0:00:00]} Ng3 {[%emt 0:02:17]} 49. Kd3 {[%emt 0:00:00]} Ne4 {[%emt 0:00:47]} 50. Bg7 {[%emt 0:00:00]} Ng3 {[%emt 0:01:12]} 51. Bc3 {[%emt 0:00:00]} Ne4 {[%emt 0:00:43]} 52. Bd4 {[%emt 0:00:00]} Nd6 {[%emt 0:01:19]} 53. Be5 {[%emt 0:00:06]} Ne4 {[%emt 0:00:14]} 54. Bd4 {[%emt 0:04:12]} Nd6 {[%emt 0:00:44]} 55. Be5 {[%emt 0:01:55]} Ne4 {[%emt 0:00:41]} 56. Bd4 {[%emt 0:00:32]} Nd6 {[%emt 0:12:17]} 1/2-1/2

[Event "Nordic Chess-ch 2019"]
[Site "Sarpsborg"]
[Date "2019.06.22"]
[Round "3.18"]
[White "Sahl, Sheila Barth"]
[Black "Schouten, Mathias Lind"]
[Result "1-0"]
[ECO "A43"]
[WhiteElo "2127"]
[BlackElo "1967"]
[Annotator "ChessBase"]
[PlyCount "51"]
[EventDate "2019.06.21"]
[EventType "swiss"]
[EventCountry "NOR"]
[SourceTitle "playchess.com"]
[Source "ChessBase"]
[SourceQuality "1"]
[TimeControl "40/5400+30:1800+30"]

1. d4 {[%emt 0:00:00]} Nf6 {[%emt 0:00:52]} 2. Bf4 {[%emt 0:00:37]} g6 {[%emt 0:00:41]} 3. Nc3 {[%emt 0:00:42]} c5 {[%emt 0:01:15]} 4. d5 {[%emt 0:01:13]} d6 {[%emt 0:03:02]} 5. e4 {[%emt 0:01:04]} Bg7 {[%emt 0:00:28]} 6. Nf3 {[%emt 0:00:49]} Bg4 {[%emt 0:00:30]} 7. Be2 {[%emt 0:02:15]} Bxf3 {[%emt 0:00:36]} 8. Bxf3 {[%emt 0:00:46]} Nbd7 {[%emt 0:00:11]} 9. O-O {[%emt 0:01:48]} O-O {[%emt 0:05:51]} 10. a4 {[%emt 0:00:55]} a6 {[%emt 0:01:49]} 11. Re1 {[%emt 0:08:50]} Ne8 {[%emt 0:01:56]} 12. Qd2 {[%emt 0:03:44]} Nc7 {[%emt 0:12:00]} 13. a5 {[%emt 0:15:01]} Nb5 {[%emt 0:01:41]} 14. Nd1 {[%emt 0:03:44]} Nd4 {[%emt 0:03:56]} 15. Be2 {[%emt 0:01:05]} Nxe2+ {[%emt 0:01:36]} 16. Qxe2 {[%emt 0:00:20]} b5 {[%emt 0:01:29]} 17. axb6 {[%emt 0:02:51]} Qxb6 {[%emt 0:01:10]} 18. h4 {[%emt 0:05:14]} Rfb8 {[%emt 0:03:19]} 19. h5 {[%emt 0:02:36]} a5 {[%emt 0:04:32]} 20. hxg6 {[%emt 0:00:28]} hxg6 {[%emt 0:00:10]} 21. Ra3 {[%emt 0:06:54]} Qb5 {[%emt 0:10:41]} 22. Qg4 {[%emt 0:07:16]} Ne5 {[%emt 0:05:33]} 23. Qh4 {[%emt 0:05:41]} Kf8 {[%emt 0:08:48]} 24. Rh3 {[%emt 0:02:03]} Bf6 {[%emt 0:03:43]} 25. Bg5 {[%emt 0:04:58]} Bxg5 {[%emt 0:04:40]} 26. Qh8# 1-0

[Event "Nordic Chess-ch 2019"]
[Site "Sarpsborg"]
[Date "2019.06.22"]
[Round "3.19"]
[White "Jashari, Driton"]
[Black "Neretljak, Nedzad"]
[Result "1-0"]
[ECO "C01"]
[WhiteElo "1755"]
[BlackElo "2114"]
[Annotator "ChessBase"]
[PlyCount "105"]
[EventDate "2019.06.21"]
[EventType "swiss"]
[EventCountry "NOR"]
[SourceTitle "playchess.com"]
[Source "ChessBase"]
[SourceQuality "1"]
[TimeControl "40/5400+30:1800+30"]

1. e4 {[%emt 0:05:12]} e6 {[%emt 0:00:00]} 2. d4 {[%emt 0:01:26]} d5 {[%emt 0:00:00]} 3. exd5 {[%emt 0:00:24]} exd5 {[%emt 0:00:07]} 4. Nf3 {[%emt 0:00:26]} Bd6 {[%emt 0:00:33]} 5. Bd3 {[%emt 0:00:06]} Ne7 {[%emt 0:00:23]} 6. c4 {[%emt 0:03:10]} c6 {[%emt 0:00:16]} 7. Bg5 {[%emt 0:03:24]} Be6 {[%emt 0:03:00]} 8. c5 {[%emt 0:00:12]} Bc7 {[%emt 0:00:11]} 9. O-O {[%emt 0:00:30]} b6 {[%emt 0:00:37]} 10. Qc2 {[%emt 0:00:37]} bxc5 {[%emt 0:03:35]} 11. dxc5 {[%emt 0:03:43]} h6 {[%emt 0:22:28]} 12. Bh4 {[%emt 0:04:16]} O-O {[%emt 0:08:35]} 13. Re1 {[%emt 0:02:38]} Qd7 {[%emt 0:07:58]} 14. Nd4 {[%emt 0:08:04]} Re8 {[%emt 0:17:33]} 15. Nd2 {[%emt 0:01:43]} a5 {[%emt 0:00:43]} 16. N2f3 {[%emt 0:00:18]} Na6 {[%emt 0:00:26]} 17. a3 {[%emt 0:00:07]} Bf4 {[%emt 0:06:10]} 18. Bg3 {[%emt 0:00:38]} Bxg3 {[%emt 0:02:15]} 19. hxg3 {[%emt 0:00:29]} Qc8 {[%emt 0:05:01]} 20. Rac1 {[%emt 0:00:06]} Ra7 {[%emt 0:02:03]} 21. Nxe6 {[%emt 0:00:48]} fxe6 {[%emt 0:00:06]} 22. Qe2 {[%emt 0:05:57]} Nc7 {[%emt 0:00:15]} 23. g4 {[%emt 0:01:54]} Kh8 {[%emt 0:01:51]} 24. Bc2 {[%emt 0:13:09]} Rf8 {[%emt 0:02:54]} 25. Ne5 {[%emt 0:00:03]} Ne8 {[%emt 0:05:34]} 26. f3 {[%emt 0:03:39]} Nf6 {[%emt 0:00:57]} 27. Qd3 {[%emt 0:00:45]} Qe8 {[%emt 0:01:17]} 28. f4 {[%emt 0:01:59]} Ne4 {[%emt 0:00:46]} 29. Rxe4 {[%emt 0:00:14]} dxe4 {[%emt 0:00:05]} 30. Qxe4 {[%emt 0:00:09]} g6 {[%emt 0:00:07]} 31. Rd1 {[%emt 0:04:31]} Kg8 {[%emt 0:03:32]} 32. Rd6 {[%emt 0:00:08]} Nd5 {[%emt 0:02:32]} 33. Nxg6 {[%emt 0:00:14]} Rf6 {[%emt 0:00:17]} 34. f5 {[%emt 0:04:14]} Rg7 {[%emt 0:00:47]} 35. Ba4 {[%emt 0:05:17]} Rgxg6 {[%emt 0:02:24]} 36. Bxc6 {[%emt 0:00:52]} Qf8 {[%emt 0:01:51]} 37. Bxd5 {[%emt 0:00:26]} Rg7 {[%emt 0:00:36]} 38. Bxe6+ {[%emt 0:00:17]} Kh7 {[%emt 0:00:18]} 39. b4 {[%emt 0:01:43]} axb4 {[%emt 0:00:07]} 40. axb4 {[%emt 0:00:02]} Ra7 {[%emt 0:00:36]} 41. Qd4 {[%emt 0:31:09]} Qg7 {[%emt 0:05:30]} 42. c6 {[%emt 0:00:00]} Re7 {[%emt 0:10:03]} 43. b5 {[%emt 0:00:00]} Qg5 {[%emt 0:00:17]} 44. Rd7 {[%emt 0:00:00]} Rff7 {[%emt 0:02:02]} 45. Bxf7 {[%emt 0:00:00]} Re1+ {[%emt 0:05:11]} 46. Kf2 {[%emt 0:00:00]} Qh4+ {[%emt 0:02:09]} 47. g3 {[%emt 0:00:00]} Qh2+ {[%emt 0:01:42]} 48. Kxe1 {[%emt 0:00:00]} Qxg3+ {[%emt 0:00:11]} 49. Kd2 {[%emt 0:00:00]} Qg2+ {[%emt 0:00:06]} 50. Kc3 {[%emt 0:00:00]} Qg3+ {[%emt 0:09:03]} 51. Kc4 {[%emt 0:30:31]} h5 {[%emt 0:00:00]} 52. Bxh5+ {[%emt 0:00:00]} Kh6 {[%emt 0:01:00]} 53. Qg7# 1-0

[Event "Nordic Chess-ch 2019"]
[Site "Sarpsborg"]
[Date "2019.06.22"]
[Round "3.20"]
[White "Rishovd, Svein"]
[Black "Stabbetorp, Jon Anders"]
[Result "1-0"]
[ECO "E68"]
[WhiteElo "2113"]
[BlackElo "1817"]
[Annotator "ChessBase"]
[PlyCount "79"]
[EventDate "2019.06.21"]
[EventType "swiss"]
[EventCountry "NOR"]
[SourceTitle "playchess.com"]
[Source "ChessBase"]
[SourceQuality "1"]
[TimeControl "40/5400+30:1800+30"]

1. Nf3 {[%emt 0:00:00]} Nf6 {[%emt 0:02:16]} 2. g3 {[%emt 0:00:25]} g6 {[%emt 0:00:08]} 3. Bg2 {[%emt 0:00:19]} Bg7 {[%emt 0:00:07]} 4. d4 {[%emt 0:01:21]} d6 {[%emt 0:02:31]} 5. c4 {[%emt 0:00:39]} Nbd7 {[%emt 0:00:16]} 6. O-O {[%emt 0:00:51]} O-O {[%emt 0:00:18]} 7. Nc3 {[%emt 0:00:05]} Re8 {[%emt 0:00:14]} 8. e4 {[%emt 0:01:43]} e5 {[%emt 0:00:48]} 9. b3 {[%emt 0:00:33]} exd4 {[%emt 0:02:25]} 10. Nxd4 {[%emt 0:00:06]} Nc5 {[%emt 0:00:46]} 11. f3 {[%emt 0:00:19]} a5 {[%emt 0:00:24]} 12. Be3 {[%emt 0:03:17]} Bd7 {[%emt 0:03:10]} 13. Ndb5 {[%emt 0:03:56]} b6 {[%emt 0:19:47]} 14. Re1 {[%emt 0:01:47]} Bc6 {[%emt 0:09:42]} 15. Qd2 {[%emt 0:01:30]} Nfd7 {[%emt 0:03:15]} 16. Rad1 {[%emt 0:13:55]} Ne5 {[%emt 0:03:32]} 17. Qc2 {[%emt 0:02:10]} Bd7 {[%emt 0:11:04]} 18. f4 {[%emt 0:05:35]} Nc6 {[%emt 0:02:20]} 19. a3 {[%emt 0:03:22]} f5 {[%emt 0:01:02]} 20. Nd5 {[%emt 0:02:13]} Rc8 {[%emt 0:02:52]} 21. Nxb6 {[%emt 0:12:49]} cxb6 {[%emt 0:03:24]} 22. Nxd6 {[%emt 0:00:09]} Nxe4 {[%emt 0:01:06]} 23. Nxe8 {[%emt 0:02:05]} Qxe8 {[%emt 0:01:01]} 24. Bxb6 {[%emt 0:01:18]} Qf7 {[%emt 0:03:07]} 25. Qd3 {[%emt 0:09:25]} Rb8 {[%emt 0:06:02]} 26. Be3 {[%emt 0:12:21]} Nf6 {[%emt 0:02:44]} 27. Bc5 {[%emt 0:06:05]} Bf8 {[%emt 0:05:07]} 28. Bxf8 {[%emt 0:03:58]} Qxf8 {[%emt 0:00:06]} 29. Qd6 {[%emt 0:01:13]} Rc8 {[%emt 0:07:41]} 30. c5 {[%emt 0:03:15]} Qxd6 {[%emt 0:04:20]} 31. Rxd6 {[%emt 0:00:46]} Kf7 {[%emt 0:00:40]} 32. Red1 {[%emt 0:04:52]} Rc7 {[%emt 0:00:51]} 33. Rb1 {[%emt 0:02:20]} Ne8 {[%emt 0:01:48]} 34. Rxd7+ {[%emt 0:00:36]} Rxd7 {[%emt 0:00:36]} 35. Bxc6 {[%emt 0:00:05]} Rd3 {[%emt 0:01:03]} 36. Bxe8+ {[%emt 0:01:51]} Kxe8 {[%emt 0:00:07]} 37. b4 {[%emt 0:00:30]} Rxa3 {[%emt 0:00:12]} 38. b5 {[%emt 0:00:11]} a4 {[%emt 0:00:55]} 39. b6 {[%emt 0:00:41]} Rb3 {[%emt 0:00:37]} 40. Rxb3 {[%emt 0:00:41]} 1-0

[Event "Nordic Chess-ch 2019"]
[Site "Sarpsborg"]
[Date "2019.06.22"]
[Round "3.21"]
[White "Johansen, Kolbjorn-Albin"]
[Black "Wahlund, Max"]
[Result "1-0"]
[ECO "A45"]
[WhiteElo "1690"]
[BlackElo "2103"]
[Annotator "ChessBase"]
[PlyCount "85"]
[EventDate "2019.06.21"]
[EventType "swiss"]
[EventCountry "NOR"]
[SourceTitle "playchess.com"]
[Source "ChessBase"]
[SourceQuality "1"]
[TimeControl "40/5400+30:1800+30"]

1. d4 {[%emt 0:00:00]} Nf6 {[%emt 0:00:00]} 2. Bf4 {[%emt 0:00:04]} d6 {[%emt 0:02:02]} 3. Nc3 {[%emt 0:01:02]} Nbd7 {[%emt 0:00:28]} 4. e4 {[%emt 0:00:46]} e5 {[%emt 0:00:16]} 5. Be3 {[%emt 0:03:01]} Be7 {[%emt 0:00:15]} 6. f3 {[%emt 0:01:08]} c6 {[%emt 0:01:00]} 7. Qd2 {[%emt 0:01:59]} b5 {[%emt 0:02:25]} 8. O-O-O {[%emt 0:07:51]} Qa5 {[%emt 0:03:46]} 9. Kb1 {[%emt 0:05:08]} b4 {[%emt 0:04:46]} 10. Nce2 {[%emt 0:00:46]} Nb6 {[%emt 0:02:30]} 11. Nc1 {[%emt 0:04:27]} Be6 {[%emt 0:13:28]} 12. Nh3 {[%emt 0:17:33]} c5 {[%emt 0:07:40]} 13. d5 {[%emt 0:15:28]} Nbxd5 {[%emt 0:08:27]} 14. exd5 {[%emt 0:05:37]} Nxd5 {[%emt 0:00:03]} 15. Nb3 {[%emt 0:09:20]} Qb6 {[%emt 0:04:19]} 16. Bf2 {[%emt 0:08:18]} h6 {[%emt 0:07:03]} 17. Bc4 {[%emt 0:04:02]} Nc7 {[%emt 0:06:13]} 18. Bxe6 {[%emt 0:00:42]} fxe6 {[%emt 0:00:19]} 19. Qd3 {[%emt 0:02:51]} O-O {[%emt 0:00:52]} 20. Qg6 {[%emt 0:01:50]} Qb5 {[%emt 0:01:12]} 21. Rhe1 {[%emt 0:00:45]} c4 {[%emt 0:01:58]} 22. Nd2 {[%emt 0:00:27]} d5 {[%emt 0:09:15]} 23. Rxe5 {[%emt 0:01:11]} Bf6 {[%emt 0:00:07]} 24. f4 {[%emt 0:00:49]} Bxe5 {[%emt 0:01:49]} 25. fxe5 {[%emt 0:00:01]} c3 {[%emt 0:00:51]} 26. Nf3 {[%emt 0:00:47]} Rf7 {[%emt 0:07:41]} 27. Be3 {[%emt 0:01:42]} Kf8 {[%emt 0:04:36]} 28. Nf4 {[%emt 0:01:31]} Re8 {[%emt 0:01:48]} 29. Nd4 {[%emt 0:01:08]} Qa6 {[%emt 0:00:58]} 30. Nb3 {[%emt 0:00:44]} cxb2 {[%emt 0:01:06]} 31. Qh7 {[%emt 0:01:09]} Ke7 {[%emt 0:00:52]} 32. Qg6 {[%emt 0:00:45]} Nb5 {[%emt 0:02:20]} 33. Bc5+ {[%emt 0:00:12]} Kd8 {[%emt 0:00:08]} 34. Bxb4 {[%emt 0:00:09]} Rxf4 {[%emt 0:01:04]} 35. Rxd5+ {[%emt 0:00:08]} Kc7 {[%emt 0:00:19]} 36. Qxe8 {[%emt 0:00:26]} exd5 {[%emt 0:01:36]} 37. Ba5+ {[%emt 0:00:32]} Qxa5 {[%emt 0:01:05]} 38. Nxa5 {[%emt 0:00:13]} Kb6 {[%emt 0:00:26]} 39. Qd8+ {[%emt 0:01:45]} Ka6 {[%emt 0:00:15]} 40. Nb3 {[%emt 0:01:56]} Na3+ {[%emt 0:02:25]} 41. Kxb2 {[%emt 0:30:09]} Nc4+ {[%emt 0:30:04]} 42. Kc3 {[%emt 0:01:05]} Nb6 {[%emt 0:00:08]} 43. Kd3 {[%emt 0:00:00]} 1-0